fUST/lending_fUST_20250719
["ID","MTS","AMOUNT","RATE_DAILY","PERIOD"]
[373104853,1752861046845,-460.0,0.00017448,2]
[373104855,1752861046855,-1244.16,0.00017448,2]
[373104857,1752861046864,-460.0,0.00017448,2]
[373104859,1752861046873,-460.0,0.00017448,2]
[373104861,1752861046884,-1142.47,0.00017448,2]
[373104863,1752861046893,-460.0,0.00017448,2]
[373104865,1752861046903,-608.28,0.00017448,2]
[373104867,1752861046913,-507.74814976,0.00017448,2]
[373104869,1752861046922,-460.0,0.00017448,2]
[373104871,1752861046931,-460.0,0.00017448,2]
[373104873,1752861046940,-460.0,0.00017448,2]
[373104875,1752861046950,-456.15,0.00017448,2]
[373104877,1752861046959,-460.0,0.00017448,2]
[373104879,1752861046969,-460.0,0.00017448,2]
[373104881,1752861046979,-3269.89,0.00017451,2]
[373104883,1752861046988,-798.34,0.00017451,2]
[373104885,1752861046997,-466.17450699,0.00017529,2]
[373104887,1752861047006,-460.0,0.00017546,2]
[373104889,1752861047015,-881.34,0.00017546,2]
[373104891,1752861047024,-460.0,0.00017549,2]
[373104893,1752861047033,-980.56,0.00017549,2]
[373104895,1752861047043,-1446.12,0.00017549,2]
[373104897,1752861047054,-508.93,0.00017549,2]
[373104899,1752861047064,-1152.65,0.00017549,2]
[373104901,1752861047074,-2211.27,0.00017549,2]
[373104903,1752861047091,-466.52129249,0.0001755,2]
[373104905,1752861047100,-460.0,0.0001755,2]
[373104907,1752861047110,-460.0,0.0001755,2]
[373104909,1752861047120,-460.0,0.0001755,2]
[373104911,1752861047130,-460.0,0.0001755,2]
[373104913,1752861047139,-152.51988293,0.0001755,2]
[373104915,1752861047149,-460.0,0.0001755,2]
[373104917,1752861047160,-460.0,0.0001755,2]
[373104919,1752861047169,-1810.51,0.0001755,2]
[373104921,1752861047178,-460.0,0.0001755,2]
[373104923,1752861047188,-157.93,0.0001755,2]
[373104925,1752861047198,-525.77,0.0001755,2]
[373104927,1752861047208,-460.0,0.0001755,2]
[373104929,1752861047217,-957.04,0.0001755,2]
[373104931,1752861047226,-460.0,0.0001755,2]
[373104933,1752861047236,-460.0,0.0001755,2]
[373104935,1752861047245,-512.25593399,0.0001755,2]
[373104937,1752861047254,-625.7,0.0001755,2]
[373104939,1752861047264,-460.0,0.0001755,2]
[373104941,1752861047273,-460.0,0.0001755,2]
[373104943,1752861047283,-1034.69,0.0001755,2]
[373104945,1752861047292,-460.0,0.0001755,2]
[373104947,1752861047301,-460.0,0.0001755,2]
[373104949,1752861047313,-460.0,0.0001755,2]
[373104951,1752861047322,-460.0,0.0001755,2]
[373104953,1752861047332,-460.0,0.0001755,2]
[373104955,1752861047341,-466.04290391,0.00017551,2]
[373104957,1752861047350,-460.0,0.00017551,2]
[373104959,1752861047361,-460.0,0.00017551,2]
[373104961,1752861047372,-460.0,0.00017551,2]
[373104963,1752861047382,-460.0,0.00017551,2]
[373104964,1752861047391,-460.0,0.00017551,2]
[373104967,1752861047401,-460.0,0.00017551,2]
[373104968,1752861047410,-460.0,0.00017551,2]
[373104971,1752861047420,-460.0,0.00017551,2]
[373104973,1752861047430,-460.0,0.00017551,2]
[373104975,1752861047439,-716.87,0.00017551,2]
[373104977,1752861047449,-460.0,0.00017551,2]
[373104979,1752861047459,-460.0,0.00017552,2]
[373104981,1752861047468,-460.0,0.00017552,2]
[373104983,1752861047477,-460.82486432,0.00017552,2]
[373104985,1752861047487,-563.85337298,0.00017552,2]
[373104987,1752861047497,-460.0,0.00017552,2]
[373104989,1752861047506,-460.0,0.00017552,2]
[373104991,1752861047516,-460.0,0.00017552,2]
[373104993,1752861047526,-460.0,0.00017552,2]
[373104995,1752861047535,-460.0,0.00017552,2]
[373104997,1752861047545,-460.0,0.00017552,2]
[373104999,1752861047556,-460.0,0.00017552,2]
[373105001,1752861047566,-460.0,0.00017552,2]
[373105003,1752861047576,-460.0,0.00017552,2]
[373105005,1752861047586,-460.0,0.00017552,2]
[373105007,1752861047596,-460.0,0.00017552,2]
[373105009,1752861047606,-460.0,0.00017552,2]
[373105011,1752861047616,-460.0,0.00017552,2]
[373105013,1752861047626,-494.2,0.00017552,2]
[373105015,1752861047635,-460.0,0.00017552,2]
[373105017,1752861047645,-555.31653507,0.00017552,2]
[373105019,1752861047654,-460.0,0.00017552,2]
[373105021,1752861047664,-460.0,0.00017552,2]
[373105023,1752861047674,-460.0,0.00017552,2]
[373105025,1752861047683,-460.0,0.00017552,2]
[373105027,1752861047693,-604.29,0.00017552,2]
[373105029,1752861047702,-576.19,0.00017552,2]
[373105031,1752861047711,-460.0,0.00017552,2]
[373105033,1752861047721,-460.0,0.00017552,2]
[373105035,1752861047730,-460.0,0.00017552,2]
[373105037,1752861047739,-460.0,0.00017552,2]
[373105039,1752861047749,-460.0,0.00017552,2]
[373105041,1752861047758,-570.70372442,0.00017552,2]
[373105042,1752861047767,-460.0,0.00017553,2]
[373105045,1752861047777,-460.0,0.00017553,2]
[373105047,1752861047786,-515.30536599,0.00017553,2]
[373105049,1752861047796,-460.0,0.00017553,2]
[373105051,1752861047807,-460.0,0.00017553,2]
[373105053,1752861047817,-460.0,0.00017553,2]
[373105055,1752861047826,-460.0,0.00017721,2]
[373105057,1752861047836,-460.0,0.00017722,2]
[373105059,1752861047845,-460.0,0.00017722,2]
[373105060,1752861047854,-460.0,0.00017722,2]
[373105063,1752861047865,-460.0,0.00017722,2]
[373105065,1752861047874,-1244.16,0.00017722,2]
[373105067,1752861047883,-460.0,0.00017722,2]
[373105069,1752861047894,-460.0,0.00017722,2]
[373105071,1752861047903,-1142.47,0.00017722,2]
[373105073,1752861047913,-460.0,0.00017722,2]
[373105075,1752861047922,-608.28,0.00017722,2]
[373105077,1752861047932,-460.0,0.00017722,2]
[373105079,1752861047941,-460.0,0.00017722,2]
[373105081,1752861047950,-460.0,0.00017722,2]
[373105083,1752861047959,-460.0,0.00017722,2]
[373105085,1752861047969,-3269.89,0.00017725,2]
[373105087,1752861047977,-798.34,0.00017725,2]
[373105089,1752861047986,-527.82595371,0.00017812,2]
[373105090,1752861047996,-460.0,0.0001782,2]
[373105091,1752861048005,-881.34,0.0001782,2]
[373105092,1752861048014,-980.56,0.00017823,2]
[373105093,1752861048022,-1446.12,0.00017823,2]
[373105094,1752861048032,-508.93,0.00017823,2]
[373105095,1752861048041,-1152.65,0.00017823,2]
[373105096,1752861048051,-2211.27,0.00017823,2]
[373105097,1752861048064,-460.0,0.00017824,2]
[373105099,1752861048076,-460.0,0.00017824,2]
[373105100,1752861048086,-460.0,0.00017824,2]
[373105103,1752861048097,-460.0,0.00017824,2]
[373105104,1752861048107,-460.0,0.00017824,2]
[373105107,1752861048118,-460.0,0.00017824,2]
[373105108,1752861048128,-1810.51,0.00017824,2]
[373105111,1752861048139,-460.0,0.00017824,2]
[373105113,1752861048149,-525.77,0.00017824,2]
[373105115,1752861048162,-460.0,0.00017824,2]
[373105137,1752861048380,-957.04,0.00017824,2]
[373105139,1752861048389,-460.0,0.00017824,2]
[373105141,1752861048399,-460.0,0.00017824,2]
[373105143,1752861048409,-625.7,0.00017824,2]
[373105145,1752861048419,-556.90864065,0.00017824,2]
[373105147,1752861048430,-460.0,0.00017824,2]
[373105149,1752861048440,-1034.69,0.00017824,2]
[373105151,1752861048450,-460.0,0.00017824,2]
[373105153,1752861048459,-460.0,0.00017824,2]
[373105155,1752861048469,-460.0,0.00017824,2]
[373105157,1752861048479,-460.0,0.00017824,2]
[373105159,1752861048489,-460.0,0.00017824,2]
[373105161,1752861048500,-460.0,0.00017825,2]
[373105163,1752861048510,-460.0,0.00017825,2]
[373105165,1752861048520,-460.0,0.00017825,2]
[373105167,1752861048530,-460.0,0.00017825,2]
[373105169,1752861048539,-460.0,0.00017825,2]
[373105171,1752861048549,-460.0,0.00017825,2]
[373105173,1752861048560,-716.87,0.00017825,2]
[373105175,1752861048570,-460.0,0.00017825,2]
[373105177,1752861048579,-466.92,0.00017826,2]
[373105179,1752861048589,-176.62,0.00017826,2]
[373105181,1752861048598,-460.0,0.00017826,2]
[373105183,1752861048608,-460.0,0.00017826,2]
[373105185,1752861048617,-460.0,0.00017826,2]
[373105187,1752861048626,-460.0,0.00017826,2]
[373105189,1752861048636,-460.0,0.00017826,2]
[373105191,1752861048646,-460.0,0.00017826,2]
[373105193,1752861048655,-460.0,0.00017826,2]
[373105195,1752861048665,-460.0,0.00017826,2]
[373105197,1752861048674,-460.0,0.00017826,2]
[373105199,1752861048684,-460.0,0.00017826,2]
[373105201,1752861048693,-494.2,0.00017826,2]
[373105203,1752861048703,-538.01,0.00017826,2]
[373105205,1752861048713,-460.0,0.00017826,2]
[373105207,1752861048722,-460.0,0.00017826,2]
[373105209,1752861048731,-460.0,0.00017826,2]
[373105211,1752861048741,-604.29,0.00017826,2]
[373105213,1752861048750,-460.0,0.00017826,2]
[373105215,1752861048759,-460.0,0.00017826,2]
[373105217,1752861048769,-460.0,0.00017826,2]
[373105219,1752861048778,-460.0,0.00017826,2]
[373105221,1752861048789,-460.0,0.00017827,2]
[373105223,1752861048798,-486.47431785,0.00017827,2]
[373105225,1752861048812,-460.0,0.00017827,2]
[373105227,1752861048822,-460.0,0.00017827,2]
[373105229,1752861048832,-2087.03069504,0.000179,2]
[373105231,1752861048842,-215.63268315,0.00017909,2]
[373105233,1752861048851,-160.0,0.00017909,2]
[373105235,1752861048862,-839.30593155,0.00017909,2]
[373105237,1752861048872,-476.25663856,0.00017909,2]
[373105239,1752861048882,-525.75194068,0.00017909,2]
[373105241,1752861048892,-12610.43989422,0.00017909,2]
[373105255,1752861049006,-160.0,0.00017909,2]
[373105257,1752861049016,-160.0,0.00017909,2]
[373105259,1752861049026,-214.4881157,0.00017909,2]
[373105261,1752861049036,-230.89969799,0.00017909,2]
[373105263,1752861049044,-160.0,0.00017909,2]
[373105265,1752861049055,-160.0,0.00017963,2]
[373105267,1752861049066,-460.0,0.00017995,2]
[373105268,1752861049077,-228.90264443,0.00017996,2]
[373105271,1752861049090,-460.0,0.00017996,2]
[373105273,1752861049100,-460.0,0.00017996,2]
[373105275,1752861049110,-1244.16,0.00017996,2]
[373105277,1752861049120,-460.0,0.00017996,2]
[373105279,1752861049131,-329.24935151,0.00017996,2]
[373105281,1752861049140,-1142.47,0.00017996,2]
[373105283,1752861049152,-460.0,0.00017996,2]
[373105285,1752861049164,-608.28,0.00017996,2]
[373105287,1752861049175,-460.0,0.00017996,2]
[373105288,1752861049186,-210.26760973,0.00017996,2]
[373105291,1752861049200,-460.0,0.00017996,2]
[373105292,1752861049210,-460.0,0.00017996,2]
[373105294,1752861049220,-3269.89,0.00017999,2]
[373105296,1752861049230,-798.34,0.00017999,2]
[373105298,1752861049239,-168.0,0.00018055,3]
[373105300,1752861049249,-460.0,0.00018094,2]
[373105303,1752861049260,-881.34,0.00018094,2]
[373105305,1752861049269,-980.56,0.00018097,2]
[373105307,1752861049280,-1446.12,0.00018097,2]
[373105309,1752861049290,-508.93,0.00018097,2]
[373105311,1752861049299,-1152.65,0.00018097,2]
[373105313,1752861049309,-2211.27,0.00018097,2]
[373105315,1752861049319,-469.2274861,0.00018098,2]
[373105317,1752861049329,-460.0,0.00018098,2]
[373105319,1752861049339,-460.0,0.00018098,2]
[373105321,1752861049349,-460.0,0.00018098,2]
[373105323,1752861049359,-460.0,0.00018098,2]
[373105325,1752861049368,-460.0,0.00018098,2]
[373105327,1752861049378,-1810.51,0.00018098,2]
[373105329,1752861049388,-460.0,0.00018098,2]
[373105331,1752861049397,-525.77,0.00018098,2]
[373105333,1752861049407,-460.0,0.00018098,2]
[373105335,1752861049416,-957.04,0.00018098,2]
[373105337,1752861049425,-460.0,0.00018098,2]
[373105339,1752861049435,-625.7,0.00018098,2]
[373105341,1752861049444,-460.0,0.00018098,2]
[373105343,1752861049453,-1034.69,0.00018098,2]
[373105345,1752861049463,-460.0,0.00018098,2]
[373105347,1752861049472,-460.0,0.00018098,2]
[373105349,1752861049482,-460.0,0.00018098,2]
[373105351,1752861049492,-460.0,0.00018098,2]
[373105353,1752861049501,-460.0,0.00018098,2]
[373105355,1752861049510,-208.95,0.00018099,2]
[373105357,1752861049519,-460.0,0.00018099,2]
[373105359,1752861049528,-460.0,0.00018099,2]
[373105361,1752861049537,-460.0,0.00018099,2]
[373105363,1752861049547,-460.0,0.00018099,2]
[373105365,1752861049556,-460.0,0.00018099,2]
[373105367,1752861049565,-716.87,0.00018099,2]
[373105369,1752861049574,-460.0,0.00018099,2]
[373105371,1752861049583,-460.0,0.000181,2]
[373105373,1752861049592,-460.0,0.000181,2]
[373105375,1752861049601,-460.0,0.000181,2]
[373105377,1752861049611,-460.0,0.000181,2]
[373105379,1752861049620,-460.0,0.000181,2]
[373105381,1752861049629,-460.0,0.000181,2]
[373105383,1752861049638,-460.0,0.000181,2]
[373105385,1752861049647,-460.0,0.000181,2]
[373105387,1752861049656,-460.0,0.000181,2]
[373105389,1752861049665,-494.2,0.000181,2]
[373105390,1752861049674,-460.0,0.000181,2]
[373105392,1752861049684,-460.0,0.000181,2]
[373105395,1752861049693,-460.0,0.000181,2]
[373105397,1752861049702,-604.29,0.000181,2]
[373105398,1752861049711,-543.28948368,0.000181,2]
[373105400,1752861049720,-460.0,0.000181,2]
[373105402,1752861049729,-460.0,0.000181,2]
[373105404,1752861049738,-460.0,0.000181,2]
[373105407,1752861049748,-460.0,0.00018101,2]
[373105409,1752861049757,-460.0,0.00018101,2]
[373105411,1752861049767,-1595.04393525,0.00018152,2]
[373105413,1752861049775,-420.0,0.00018164,2]
[373105415,1752861049785,-420.0,0.00018164,2]
[373105417,1752861049795,-385.0,0.00018164,2]
[373105419,1752861049804,-150.0,0.0001817,2]
[373105421,1752861049813,-2087.03069484,0.00018176,2]
[373105423,1752861049823,-912.0,0.00018256,2]
[373105425,1752861049833,-460.0,0.00018269,2]
[373105427,1752861049842,-460.0,0.0001827,2]
[373105429,1752861049851,-460.0,0.0001827,2]
[373105431,1752861049860,-1244.16,0.0001827,2]
[373105433,1752861049870,-460.0,0.0001827,2]
[373105435,1752861049879,-1142.47,0.0001827,2]
[373105437,1752861049887,-460.0,0.0001827,2]
[373105439,1752861049897,-608.28,0.0001827,2]
[373105441,1752861049906,-460.0,0.0001827,2]
[373105443,1752861049916,-460.0,0.0001827,2]
[373105445,1752861049925,-460.0,0.0001827,2]
[373105447,1752861049934,-3269.89,0.00018273,2]
[373105449,1752861049943,-798.34,0.00018273,2]
[373105451,1752861049952,-460.0,0.00018368,2]
[373105453,1752861049961,-881.34,0.00018368,2]
[373105455,1752861049970,-980.56,0.00018371,2]
[373105457,1752861049980,-1446.12,0.00018371,2]
[373105459,1752861049989,-508.93,0.00018371,2]
[373105461,1752861049998,-1152.65,0.00018371,2]
[373105463,1752861050008,-2211.27,0.00018371,2]
[373105465,1752861050017,-460.0,0.00018372,2]
[373105467,1752861050027,-460.0,0.00018372,2]
[373105469,1752861050036,-441.38121459,0.00018372,2]
[373105471,1752861050045,-1810.51,0.00018372,2]
[373105473,1752861050054,-573.9,0.00018372,2]
[373105475,1752861050068,-525.77,0.00018372,2]
[373105477,1752861050079,-460.0,0.00018372,2]
[373105479,1752861050091,-957.04,0.00018372,2]
[373105481,1752861050100,-460.0,0.00018372,2]
[373105483,1752861050109,-625.7,0.00018372,2]
[373105485,1752861050119,-1034.69,0.00018372,2]
[373105487,1752861050130,-460.0,0.00018372,2]
[373105489,1752861050140,-460.0,0.00018372,2]
[373105491,1752861050150,-460.0,0.00018372,2]
[373105494,1752861050163,-460.0,0.00018372,2]
[373105496,1752861050174,-460.0,0.00018372,2]
[373105498,1752861050184,-460.0,0.00018373,2]
[373105500,1752861050194,-460.0,0.00018373,2]
[373105502,1752861050204,-460.0,0.00018373,2]
[373105504,1752861050214,-460.0,0.00018373,2]
[373105505,1752861050224,-460.0,0.00018373,2]
[373105507,1752861050235,-716.87,0.00018373,2]
[373105510,1752861050245,-460.0,0.00018373,2]
[373105511,1752861050255,-460.0,0.00018374,2]
[373105513,1752861050265,-460.0,0.00018374,2]
[373105515,1752861050275,-460.0,0.00018374,2]
[373105518,1752861050285,-460.0,0.00018374,2]
[373105519,1752861050294,-460.0,0.00018374,2]
[373105522,1752861050304,-460.0,0.00018374,2]
[373105523,1752861050319,-460.0,0.00018374,2]
[373105526,1752861050329,-366.57,0.00018374,2]
[373105528,1752861050339,-494.2,0.00018374,2]
[373105530,1752861050349,-460.0,0.00018374,2]
[373105532,1752861050360,-460.0,0.00018374,2]
[373105534,1752861050370,-460.0,0.00018374,2]
[373105536,1752861050379,-604.29,0.00018374,2]
[373105538,1752861050390,-460.0,0.00018374,2]
[373105540,1752861050403,-460.0,0.00018374,2]
[373105542,1752861050413,-460.0,0.00018374,2]
[373105544,1752861050423,-460.0,0.00018375,2]
[373105546,1752861050434,-460.0,0.00018375,2]
[373105548,1752861050444,-2087.03069484,0.00018452,2]
[373105550,1752861050453,-260.0,0.00018511,2]
[373105552,1752861050462,-541.59,0.00018543,2]
[373105554,1752861050471,-513.63282378,0.00018544,2]
[373105556,1752861050481,-460.0,0.00018544,2]
[373105558,1752861050491,-1244.16,0.00018544,2]
[373105560,1752861050500,-460.0,0.00018544,2]
[373105562,1752861050509,-1142.47,0.00018544,2]
[373105564,1752861050518,-460.0,0.00018544,2]
[373105566,1752861050528,-608.28,0.00018544,2]
[373105568,1752861050538,-460.0,0.00018544,2]
[373105570,1752861050547,-472.14811846,0.00018544,2]
[373105572,1752861050556,-460.0,0.00018544,2]
[373105574,1752861050569,-3269.89,0.00018547,2]
[373105576,1752861050579,-798.34,0.00018547,2]
[373105578,1752861050588,-215.0738,0.00018593,2]
[373105581,1752861050598,-881.34,0.00018642,2]
[373105583,1752861050608,-980.56,0.00018645,2]
[373105585,1752861050617,-1446.12,0.00018645,2]
[373105587,1752861050627,-508.93,0.00018645,2]
[373105589,1752861050636,-1152.65,0.00018645,2]
[373105591,1752861050645,-2211.27,0.00018645,2]
[373105593,1752861050655,-460.0,0.00018646,2]
[373105595,1752861050664,-460.0,0.00018646,2]
[373105597,1752861050673,-1810.51,0.00018646,2]
[373105599,1752861050683,-525.77,0.00018646,2]
[373105601,1752861050693,-460.0,0.00018646,2]
[373105603,1752861050703,-957.04,0.00018646,2]
[373105605,1752861050712,-460.0,0.00018646,2]
[373105607,1752861050721,-625.7,0.00018646,2]
[373105609,1752861050731,-1034.69,0.00018646,2]
[373105611,1752861050740,-460.0,0.00018646,2]
[373105613,1752861050750,-460.0,0.00018646,2]
[373105615,1752861050760,-460.0,0.00018646,2]
[373105617,1752861050769,-460.0,0.00018646,2]
[373105619,1752861050778,-460.0,0.00018646,2]
[373105621,1752861050787,-197.32658262,0.00018647,2]
[373105623,1752861050797,-460.0,0.00018647,2]
[373105625,1752861050806,-460.0,0.00018647,2]
[373105627,1752861050819,-460.0,0.00018647,2]
[373105629,1752861050828,-460.0,0.00018647,2]
[373105631,1752861050837,-716.87,0.00018647,2]
[373105633,1752861050847,-460.0,0.00018647,2]
[373105635,1752861050856,-460.0,0.00018648,2]
[373105637,1752861050865,-460.0,0.00018648,2]
[373105639,1752861050875,-460.0,0.00018648,2]
[373105641,1752861050885,-460.0,0.00018648,2]
[373105643,1752861050895,-460.0,0.00018648,2]
[373105645,1752861050904,-362.77490137,0.00018648,2]
[373105647,1752861050913,-460.0,0.00018648,2]
[373105649,1752861050923,-494.2,0.00018648,2]
[373105651,1752861050932,-460.0,0.00018648,2]
[373105653,1752861050942,-460.0,0.00018648,2]
[373105655,1752861050951,-604.29,0.00018648,2]
[373105657,1752861050960,-460.0,0.00018648,2]
[373105659,1752861050969,-460.0,0.00018648,2]
[373105661,1752861050978,-460.0,0.00018648,2]
[373105663,1752861050987,-460.0,0.00018649,2]
[373105665,1752861050996,-460.0,0.00018649,2]
[373105667,1752861051006,-2087.03069484,0.00018728,2]
[373105669,1752861051015,-500.0,0.0001879,2]
[373105671,1752861051024,-460.0,0.00018818,2]
[373105673,1752861051034,-1244.16,0.00018818,2]
[373105675,1752861051043,-460.0,0.00018818,2]
[373105677,1752861051052,-1142.47,0.00018818,2]
[373105679,1752861051064,-608.28,0.00018818,2]
[373105681,1752861051072,-460.0,0.00018818,2]
[373105683,1752861051083,-460.0,0.00018818,2]
[373105685,1752861051093,-3269.89,0.00018821,2]
[373105687,1752861051103,-798.34,0.00018821,2]
[373105689,1752861051111,-150.0,0.00018869,2]
[373105691,1752861051121,-1520.12427931,0.000189,2]
[373105693,1752861051130,-881.34,0.00018916,2]
[373105695,1752861051141,-980.56,0.00018919,2]
[373105697,1752861051150,-1446.12,0.00018919,2]
[373105699,1752861051160,-508.93,0.00018919,2]
[373105701,1752861051169,-1152.65,0.00018919,2]
[373105703,1752861051178,-2211.27,0.00018919,2]
[373105705,1752861051187,-460.0,0.0001892,2]
[373105707,1752861051196,-584.53979384,0.0001892,2]
[373105709,1752861051206,-1810.51,0.0001892,2]
[373105711,1752861051215,-525.77,0.0001892,2]
[373105713,1752861051224,-460.0,0.0001892,2]
[373105715,1752861051234,-957.04,0.0001892,2]
[373105717,1752861051243,-254.7292542,0.0001892,2]
[373105719,1752861051252,-625.7,0.0001892,2]
[373105721,1752861051261,-1034.69,0.0001892,2]
[373105723,1752861051271,-460.0,0.0001892,2]
[373105725,1752861051280,-460.0,0.0001892,2]
[373105727,1752861051289,-460.0,0.0001892,2]
[373105729,1752861051298,-460.0,0.0001892,2]
[373105731,1752861051311,-460.0,0.0001892,2]
[373105733,1752861051320,-460.0,0.00018921,2]
[373105735,1752861051329,-460.0,0.00018921,2]
[373105737,1752861051338,-460.0,0.00018921,2]
[373105739,1752861051347,-460.0,0.00018921,2]
[373105741,1752861051359,-716.87,0.00018921,2]
[373105743,1752861051368,-460.0,0.00018921,2]
[373105745,1752861051377,-460.0,0.00018922,2]
[373105747,1752861051387,-460.0,0.00018922,2]
[373105749,1752861051397,-413.8,0.00018922,2]
[373105751,1752861051406,-460.0,0.00018922,2]
[373105753,1752861051415,-460.0,0.00018922,2]
[373105755,1752861051425,-321.45,0.00018922,2]
[373105757,1752861051434,-494.2,0.00018922,2]
[373105759,1752861051445,-460.0,0.00018922,2]
[373105771,1752861051546,-460.0,0.00018922,2]
[373105773,1752861051556,-604.29,0.00018922,2]
[373105775,1752861051567,-460.0,0.00018922,2]
[373105777,1752861051576,-460.0,0.00018922,2]
[373105779,1752861051585,-460.0,0.00018922,2]
[373105781,1752861051595,-460.0,0.00018923,2]
[373105783,1752861051604,-460.0,0.00018923,2]
[373105785,1752861051614,-2087.03069484,0.00019003,2]
[373105787,1752861051623,-360.0,0.00019059,2]
[373105789,1752861051633,-460.0,0.00019092,2]
[373105791,1752861051642,-1244.16,0.00019092,2]
[373105793,1752861051651,-460.0,0.00019092,2]
[373105795,1752861051661,-1142.47,0.00019092,2]
[373105797,1752861051670,-608.28,0.00019092,2]
[373105799,1752861051679,-460.0,0.00019092,2]
[373105802,1752861051690,-460.0,0.00019092,2]
[373105803,1752861051701,-3269.89,0.00019095,2]
[373105806,1752861051711,-798.34,0.00019095,2]
[373105808,1752861051720,-175.0273,0.00019178,2]
[373105810,1752861051730,-5000.0,0.00019178,2]
[373105812,1752861051740,-666.0,0.00019178,2]
[373105814,1752861051749,-881.34,0.0001919,2]
[373105816,1752861051758,-503.93358597,0.00019192,2]
[373105818,1752861051767,-501.46377135,0.00019192,2]
[373105820,1752861051776,-500.0,0.00019192,2]
[373105822,1752861051786,-500.0,0.00019192,2]
[373105824,1752861051796,-500.0,0.00019192,2]
[373105826,1752861051805,-501.26367768,0.00019192,2]
[373105828,1752861051816,-502.99859168,0.00019192,2]
[373105830,1752861051826,-500.0,0.00019192,2]
[373105832,1752861051835,-500.0,0.00019192,2]
[373105834,1752861051844,-500.0,0.00019192,2]
[373105836,1752861051854,-501.09296893,0.00019192,2]
[373105838,1752861051863,-644.0334221,0.00019192,2]
[373105840,1752861051873,-500.0,0.00019192,2]
[373105842,1752861051882,-500.0,0.00019192,2]
[373105844,1752861051891,-500.0,0.00019192,2]
[373105846,1752861051900,-501.54652161,0.00019192,2]
[373105848,1752861051909,-501.33414174,0.00019192,2]
[373105850,1752861051918,-500.85686421,0.00019192,2]
[373105852,1752861051927,-500.0,0.00019192,2]
[373105854,1752861051936,-980.56,0.00019193,2]
[373105856,1752861051945,-1446.12,0.00019193,2]
[373105858,1752861051954,-508.93,0.00019193,2]
[373105860,1752861051963,-1152.65,0.00019193,2]
[373105862,1752861051972,-2211.27,0.00019193,2]
[373105864,1752861051981,-460.0,0.00019194,2]
[373105866,1752861051990,-1810.51,0.00019194,2]
[373105868,1752861051999,-525.77,0.00019194,2]
[373105870,1752861052009,-460.0,0.00019194,2]
[373105872,1752861052018,-957.04,0.00019194,2]
[373105874,1752861052027,-625.7,0.00019194,2]
[373105876,1752861052036,-1034.69,0.00019194,2]
[373105878,1752861052046,-460.0,0.00019194,2]
[373105880,1752861052056,-460.0,0.00019194,2]
[373105882,1752861052069,-460.0,0.00019194,2]
[373105884,1752861052079,-315.12489704,0.00019194,2]
[373105886,1752861052092,-460.0,0.00019194,2]
[373105888,1752861052102,-460.0,0.00019195,2]